[Event "Early-Titled-Tuesday-Blitz-March-26-2024"]
[Site "Chess.com"]
[Date "2024.03.26"]
[Round "3"]
[White "DIM90"]
[Black "nikitakhoroshev"]
[Result "0-1"]
[WhiteElo "2321"]
[BlackElo "2666"]
[TimeControl "180+1"]
[EndTime "8:26:30 PDT"]
[Termination "nikitakhoroshev won by resignation"]

1. e4 {[%clk 0:02:57.3]} 1... e5 {[%clk 0:02:57.8]} 2. Nf3 {[%clk 0:02:56.5]}
2... Nc6 {[%clk 0:02:57.8]} 3. Bb5 {[%clk 0:02:57.1]} 3... a6 {[%clk 0:02:57.7]}
4. Bxc6 {[%clk 0:02:57.8]} 4... dxc6 {[%clk 0:02:57.6]} 5. O-O {[%clk
0:02:58.6]} 5... Bg4 {[%clk 0:02:54.3]} 6. h3 {[%clk 0:02:58.1]} 6... h5 {[%clk
0:02:54.2]} 7. d3 {[%clk 0:02:58.5]} 7... Qf6 {[%clk 0:02:49.1]} 8. Nbd2 {[%clk
0:02:59.1]} 8... g5 {[%clk 0:02:42.5]} 9. Nc4 {[%clk 0:02:56.4]} 9... Bd6 {[%clk
0:02:36]} 10. hxg4 {[%clk 0:02:46.5]} 10... hxg4 {[%clk 0:02:35]} 11. Bxg5
{[%clk 0:02:47.1]} 11... Qg6 {[%clk 0:02:31.3]} 12. Bh4 {[%clk 0:01:02]} 12...
gxf3 {[%clk 0:02:16.8]} 13. Qxf3 {[%clk 0:00:53.1]} 13... Rxh4 {[%clk
0:02:14.4]} 14. g3 {[%clk 0:00:50.8]} 14... O-O-O {[%clk 0:01:54.3]} 15. Kg2
{[%clk 0:00:50.8]} 15... Ne7 {[%clk 0:01:42.2]} 16. Rh1 {[%clk 0:00:50.3]} 16...
Rhh8 {[%clk 0:01:40.1]} 17. Qe3 {[%clk 0:00:43.9]} 17... Kb8 {[%clk 0:01:29.9]}
18. b4 {[%clk 0:00:42.5]} 18... f5 {[%clk 0:01:28.7]} 19. a4 {[%clk 0:00:35.7]}
19... f4 {[%clk 0:01:28.1]} 20. Qf3 {[%clk 0:00:31.6]} 20... fxg3 {[%clk
0:01:26]} 21. Qxg3 {[%clk 0:00:29.8]} 21... Qf6 {[%clk 0:01:21.2]} 22. Nxd6
{[%clk 0:00:14.9]} 22... cxd6 {[%clk 0:01:19.9]} 23. Rxh8 {[%clk 0:00:12.6]}
23... Rxh8 {[%clk 0:01:19.7]} 0-1

[Event "Early-Titled-Tuesday-Blitz-March-26-2024"]
[Site "Chess.com"]
[Date "2024.03.26"]
[Round "3"]
[White "DucksParadise"]
[Black "LikeWater"]
[Result "0-1"]
[WhiteElo "2489"]
[BlackElo "2709"]
[TimeControl "180+1"]
[EndTime "8:26:44 PDT"]
[Termination "LikeWater won by resignation"]

1. e4 {[%clk 0:03:00.9]} 1... c5 {[%clk 0:02:58.6]} 2. Nf3 {[%clk 0:03:00.8]}
2... d6 {[%clk 0:02:58.5]} 3. d4 {[%clk 0:02:59.1]} 3... cxd4 {[%clk 0:02:58.4]}
4. Nxd4 {[%clk 0:03:00]} 4... Nf6 {[%clk 0:02:58.2]} 5. Nc3 {[%clk 0:03:00.5]}
5... g6 {[%clk 0:02:58.4]} 6. Be3 {[%clk 0:02:57.8]} 6... Bg7 {[%clk 0:02:57.5]}
7. f3 {[%clk 0:02:57.6]} 7... a6 {[%clk 0:02:57.5]} 8. Qd2 {[%clk 0:02:56.2]}
8... b5 {[%clk 0:02:57.4]} 9. O-O-O {[%clk 0:02:33.3]} 9... Bb7 {[%clk
0:02:52.8]} 10. Kb1 {[%clk 0:02:13.8]} 10... Nbd7 {[%clk 0:02:48.7]} 11. g4
{[%clk 0:01:52.4]} 11... Rc8 {[%clk 0:02:25.3]} 12. g5 {[%clk 0:01:45.9]} 12...
Nh5 {[%clk 0:02:19.6]} 13. Rg1 {[%clk 0:01:27.2]} 13... Ne5 {[%clk 0:01:38.6]}
14. f4 {[%clk 0:01:07.8]} 14... Nc4 {[%clk 0:01:38.2]} 15. Bxc4 {[%clk
0:01:07.3]} 15... Rxc4 {[%clk 0:01:39.1]} 16. Rge1 {[%clk 0:00:20.9]} 16... Nxf4
{[%clk 0:01:30]} 17. Bxf4 {[%clk 0:00:18.9]} 17... Rxd4 {[%clk 0:01:29.1]} 18.
Qe3 {[%clk 0:00:17.8]} 18... Rxd1+ {[%clk 0:01:23.1]} 19. Rxd1 {[%clk
0:00:18.7]} 19... Qc7 {[%clk 0:01:08.4]} 20. Nd5 {[%clk 0:00:16.7]} 20... Bxd5
{[%clk 0:01:08.8]} 21. exd5 {[%clk 0:00:16.6]} 21... O-O {[%clk 0:01:09.7]} 22.
h4 {[%clk 0:00:16.3]} 22... Rc8 {[%clk 0:01:09.9]} 23. c3 {[%clk 0:00:16.4]}
23... b4 {[%clk 0:01:08.6]} 24. cxb4 {[%clk 0:00:15.5]} 24... Qc2+ {[%clk
0:01:08.4]} 0-1

[Event "Early-Titled-Tuesday-Blitz-March-26-2024"]
[Site "Chess.com"]
[Date "2024.03.26"]
[Round "3"]
[White "quizden37"]
[Black "valeriocarnicelli"]
[Result "1-0"]
[WhiteElo "2852"]
[BlackElo "2562"]
[TimeControl "180+1"]
[EndTime "8:26:56 PDT"]
[Termination "quizden37 won by resignation"]

1. Nf3 {[%clk 0:02:49.7]} 1... Nf6 {[%clk 0:02:59.7]} 2. g3 {[%clk 0:02:49]}
2... e6 {[%clk 0:02:42.7]} 3. Bg2 {[%clk 0:02:49]} 3... d5 {[%clk 0:02:42.4]} 4.
O-O {[%clk 0:02:49.9]} 4... Be7 {[%clk 0:02:42.9]} 5. c4 {[%clk 0:02:50.4]} 5...
c6 {[%clk 0:02:43.1]} 6. Nc3 {[%clk 0:02:50]} 6... O-O {[%clk 0:02:43.4]} 7. d3
{[%clk 0:02:50]} 7... b6 {[%clk 0:02:43.8]} 8. e4 {[%clk 0:02:48.4]} 8... Bb7
{[%clk 0:02:37.2]} 9. exd5 {[%clk 0:02:47.1]} 9... cxd5 {[%clk 0:02:35.9]} 10.
Ne5 {[%clk 0:02:47.6]} 10... Nc6 {[%clk 0:02:32.9]} 11. Bf4 {[%clk 0:02:46.6]}
11... Nxe5 {[%clk 0:02:31.8]} 12. Bxe5 {[%clk 0:02:47.5]} 12... Rc8 {[%clk
0:02:28.2]} 13. Re1 {[%clk 0:02:46]} 13... Qd7 {[%clk 0:02:24.1]} 14. Qf3 {[%clk
0:02:38.6]} 14... Rfd8 {[%clk 0:02:19.5]} 15. Rad1 {[%clk 0:02:38.3]} 15... Ba8
{[%clk 0:02:18.8]} 16. Qe2 {[%clk 0:02:36.9]} 16... Bc6 {[%clk 0:01:58.7]} 17.
Bxf6 {[%clk 0:02:28.7]} 17... Bxf6 {[%clk 0:01:59.6]} 18. cxd5 {[%clk
0:02:29.3]} 18... Bxd5 {[%clk 0:01:53.5]} 19. Bxd5 {[%clk 0:02:25.9]} 19... exd5
{[%clk 0:01:54.4]} 20. d4 {[%clk 0:02:26.7]} 20... Re8 {[%clk 0:01:50.4]} 21.
Qf3 {[%clk 0:02:26.8]} 21... Rxe1+ {[%clk 0:01:33.7]} 22. Rxe1 {[%clk
0:02:25.5]} 22... Bxd4 {[%clk 0:01:34.2]} 23. Nxd5 {[%clk 0:02:24.2]} 23... Re8
{[%clk 0:01:34.4]} 24. Rd1 {[%clk 0:02:19.4]} 24... Qh3 {[%clk 0:01:08.4]} 25.
Nf4 {[%clk 0:02:18.4]} 25... Qd7 {[%clk 0:01:04.3]} 26. Nd5 {[%clk 0:02:11.5]}
26... Qh3 {[%clk 0:01:03.8]} 27. Ne7+ {[%clk 0:02:11.8]} 27... Kf8 {[%clk
0:00:56.5]} 28. Rxd4 {[%clk 0:02:08.9]} 28... f6 {[%clk 0:00:14.4]} 29. Qf5
{[%clk 0:01:57.3]} 29... Qh6 {[%clk 0:00:14.5]} 30. Nd5 {[%clk 0:01:49.8]} 30...
Qc1+ {[%clk 0:00:14.7]} 31. Kg2 {[%clk 0:01:49.9]} 31... Qxb2 {[%clk 0:00:15.6]}
32. Re4 {[%clk 0:01:30.2]} 32... Rd8 {[%clk 0:00:11.2]} 33. Qxh7 {[%clk
0:01:27.6]} 33... Kf7 {[%clk 0:00:07.6]} 34. Re7+ {[%clk 0:01:26.4]} 1-0

[Event "Early-Titled-Tuesday-Blitz-March-26-2024"]
[Site "Chess.com"]
[Date "2024.03.26"]
[Round "3"]
[White "blitzking1729"]
[Black "ATM622"]
[Result "1-0"]
[WhiteElo "2758"]
[BlackElo "2503"]
[TimeControl "180+1"]
[EndTime "8:27:03 PDT"]
[Termination "blitzking1729 won by resignation"]

1. c4 {[%clk 0:03:00.9]} 1... Nf6 {[%clk 0:02:55.9]} 2. Nc3 {[%clk 0:03:00.7]}
2... e5 {[%clk 0:02:55.3]} 3. Nf3 {[%clk 0:03:00.9]} 3... Nc6 {[%clk 0:02:54.3]}
4. e3 {[%clk 0:02:51.4]} 4... Bb4 {[%clk 0:02:50.7]} 5. Qc2 {[%clk 0:02:41.9]}
5... Bxc3 {[%clk 0:02:49.1]} 6. Qxc3 {[%clk 0:02:42.8]} 6... Qe7 {[%clk
0:02:47.3]} 7. d4 {[%clk 0:02:40]} 7... exd4 {[%clk 0:02:42]} 8. Nxd4 {[%clk
0:02:39.5]} 8... Ne4 {[%clk 0:02:42.4]} 9. Qd3 {[%clk 0:02:37.2]} 9... Nb4
{[%clk 0:02:26.8]} 10. Qd1 {[%clk 0:02:13.1]} 10... Qh4 {[%clk 0:02:15]} 11. g3
{[%clk 0:02:04.7]} 11... Qf6 {[%clk 0:02:12.2]} 12. f3 {[%clk 0:01:53.9]} 12...
Nd6 {[%clk 0:01:56.3]} 13. c5 {[%clk 0:01:42.9]} 13... Nf5 {[%clk 0:01:27.4]}
14. Nb3 {[%clk 0:01:25]} 14... Qe5 {[%clk 0:01:12]} 15. e4 {[%clk 0:01:23.8]}
15... Ne7 {[%clk 0:00:58.3]} 16. Bd2 {[%clk 0:01:16.3]} 16... Nec6 {[%clk
0:00:50.7]} 17. Bc3 {[%clk 0:01:06]} 17... Qg5 {[%clk 0:00:48]} 18. a3 {[%clk
0:00:48.9]} 18... Qe3+ {[%clk 0:00:45.2]} 19. Be2 {[%clk 0:00:48.5]} 19... Na6
{[%clk 0:00:40.9]} 20. Bd2 {[%clk 0:00:47.9]} 20... Qxb3 {[%clk 0:00:22]} 21.
Qxb3 {[%clk 0:00:45.1]} 21... Nd4 {[%clk 0:00:22.9]} 22. Qc3 {[%clk 0:00:42.9]}
22... Nxe2 {[%clk 0:00:20.9]} 23. Qxg7 {[%clk 0:00:42.6]} 23... Rf8 {[%clk
0:00:19.4]} 24. Bh6 {[%clk 0:00:42.7]} 1-0

[Event "Early-Titled-Tuesday-Blitz-March-26-2024"]
[Site "Chess.com"]
[Date "2024.03.26"]
[Round "3"]
[White "Adar_07"]
[Black "JosefineHeinemann"]
[Result "1-0"]
[WhiteElo "2800"]
[BlackElo "2510"]
[TimeControl "180+1"]
[EndTime "8:27:06 PDT"]
[Termination "Adar_07 won by resignation"]

1. Nc3 {[%clk 0:03:00.4]} 1... d5 {[%clk 0:02:59.4]} 2. d4 {[%clk 0:03:00.3]}
2... Nf6 {[%clk 0:02:58.1]} 3. Bf4 {[%clk 0:03:00.5]} 3... c5 {[%clk 0:02:58.2]}
4. e3 {[%clk 0:03:00.8]} 4... cxd4 {[%clk 0:02:56.9]} 5. exd4 {[%clk 0:03:01.7]}
5... Bg4 {[%clk 0:02:57]} 6. f3 {[%clk 0:02:56.7]} 6... Bd7 {[%clk 0:02:56]} 7.
g4 {[%clk 0:02:53.4]} 7... e6 {[%clk 0:02:50.6]} 8. h4 {[%clk 0:02:23.3]} 8...
h5 {[%clk 0:02:33.7]} 9. g5 {[%clk 0:02:20.3]} 9... Ng8 {[%clk 0:02:33.6]} 10.
g6 {[%clk 0:02:06.4]} 10... fxg6 {[%clk 0:02:33]} 11. Bd3 {[%clk 0:02:01.4]}
11... Ne7 {[%clk 0:02:32.3]} 12. Bg5 {[%clk 0:01:55.9]} 12... Qc7 {[%clk
0:02:15.8]} 13. Nge2 {[%clk 0:01:53.1]} 13... Nf5 {[%clk 0:02:13.3]} 14. Qd2
{[%clk 0:01:50.9]} 14... a6 {[%clk 0:02:11.8]} 15. Nf4 {[%clk 0:01:47.3]} 15...
Kf7 {[%clk 0:02:01.3]} 16. Rg1 {[%clk 0:01:42.4]} 16... Bd6 {[%clk 0:01:59.1]}
17. O-O-O {[%clk 0:01:35.9]} 17... Nc6 {[%clk 0:01:23.8]} 18. Nxg6 {[%clk
0:01:23.8]} 18... Ncxd4 {[%clk 0:01:00.3]} 19. Nxh8+ {[%clk 0:01:23.1]} 19...
Rxh8 {[%clk 0:01:00.6]} 20. Bxf5 {[%clk 0:01:13.4]} 20... Nxf5 {[%clk
0:00:57.9]} 21. Kb1 {[%clk 0:01:00.4]} 21... b5 {[%clk 0:00:56.9]} 22. Rge1
{[%clk 0:00:59.7]} 22... Re8 {[%clk 0:00:23.1]} 23. Nxd5 {[%clk 0:00:53.6]}
23... exd5 {[%clk 0:00:18.1]} 24. Qxd5+ {[%clk 0:00:54.5]} 24... Be6 {[%clk
0:00:08.4]} 25. Rxe6 {[%clk 0:00:54.3]} 25... Rxe6 {[%clk 0:00:08.7]} 26. Qxf5+
{[%clk 0:00:54.7]} 26... Rf6 {[%clk 0:00:07.3]} 27. Bxf6 {[%clk 0:00:54.4]} 1-0

[Event "Early-Titled-Tuesday-Blitz-March-26-2024"]
[Site "Chess.com"]
[Date "2024.03.26"]
[Round "3"]
[White "Igor_Lysyj"]
[Black "Cobysters"]
[Result "1-0"]
[WhiteElo "2832"]
[BlackElo "2568"]
[TimeControl "180+1"]
[EndTime "8:27:08 PDT"]
[Termination "Igor_Lysyj won by resignation"]

1. d4 {[%clk 0:03:00.2]} 1... Nf6 {[%clk 0:02:59.3]} 2. c4 {[%clk 0:03:00.1]}
2... e6 {[%clk 0:02:58]} 3. Nf3 {[%clk 0:02:59.2]} 3... Bb4+ {[%clk 0:02:57.6]}
4. Bd2 {[%clk 0:02:59.1]} 4... Be7 {[%clk 0:02:57.4]} 5. g3 {[%clk 0:02:56.3]}
5... b6 {[%clk 0:02:57.2]} 6. Bg2 {[%clk 0:02:56.1]} 6... Bb7 {[%clk 0:02:57.9]}
7. O-O {[%clk 0:02:54.6]} 7... O-O {[%clk 0:02:57.8]} 8. Nc3 {[%clk 0:02:53.5]}
8... d5 {[%clk 0:02:57.9]} 9. cxd5 {[%clk 0:02:50.4]} 9... Nxd5 {[%clk 0:02:57]}
10. Nxd5 {[%clk 0:02:48.9]} 10... exd5 {[%clk 0:02:57.5]} 11. Rc1 {[%clk
0:02:41.5]} 11... c5 {[%clk 0:02:57.1]} 12. dxc5 {[%clk 0:02:27.4]} 12... bxc5
{[%clk 0:02:58]} 13. Ne5 {[%clk 0:02:27.7]} 13... Nd7 {[%clk 0:02:57.3]} 14. Nd3
{[%clk 0:02:24.7]} 14... Rc8 {[%clk 0:02:52.9]} 15. Nf4 {[%clk 0:02:22.2]} 15...
Nb6 {[%clk 0:02:52.4]} 16. Ba5 {[%clk 0:02:22]} 16... Bg5 {[%clk 0:02:41.5]} 17.
b4 {[%clk 0:02:11.4]} 17... Bxf4 {[%clk 0:02:40]} 18. gxf4 {[%clk 0:02:11.2]}
18... c4 {[%clk 0:02:37.9]} 19. Qd4 {[%clk 0:02:09.8]} 19... Qf6 {[%clk
0:02:36.2]} 20. Qxf6 {[%clk 0:02:07.2]} 20... gxf6 {[%clk 0:02:37.1]} 21. Rfd1
{[%clk 0:02:06.5]} 21... Rfd8 {[%clk 0:02:35.8]} 22. b5 {[%clk 0:02:01.3]} 22...
Kg7 {[%clk 0:02:30.6]} 23. Rc3 {[%clk 0:01:50.1]} 23... f5 {[%clk 0:02:26.9]}
24. Rg3+ {[%clk 0:01:44.2]} 24... Kf6 {[%clk 0:02:27.1]} 25. Bc3+ {[%clk
0:01:41.1]} 25... Ke6 {[%clk 0:02:27.2]} 26. Re3+ {[%clk 0:01:40.7]} 26... Kd6
{[%clk 0:02:23.8]} 27. Bb4+ {[%clk 0:01:40.5]} 27... Kc7 {[%clk 0:02:23]} 28.
Bh3 {[%clk 0:01:34.9]} 28... Rg8+ {[%clk 0:02:21.5]} 29. Kf1 {[%clk 0:01:30.8]}
29... Rce8 {[%clk 0:02:21.1]} 30. Rxe8 {[%clk 0:01:28.5]} 30... Rxe8 {[%clk
0:02:22]} 31. Bxf5 {[%clk 0:01:28.6]} 31... h5 {[%clk 0:02:13.2]} 32. e3 {[%clk
0:01:27.4]} 32... Bc8 {[%clk 0:02:10.3]} 33. Bxc8 {[%clk 0:01:24.9]} 33... Rxc8
{[%clk 0:02:10.2]} 34. Ke2 {[%clk 0:01:22.7]} 34... Kd7 {[%clk 0:02:10.3]} 35.
Rg1 {[%clk 0:01:14.2]} 35... c3 {[%clk 0:02:02.4]} 36. Kd3 {[%clk 0:01:14.3]}
36... Na4 {[%clk 0:02:02.5]} 37. Kc2 {[%clk 0:01:12.5]} 37... Rc4 {[%clk
0:02:01.4]} 38. a3 {[%clk 0:01:11.3]} 38... Ke6 {[%clk 0:01:53.5]} 39. Rg5
{[%clk 0:01:10.5]} 39... d4 {[%clk 0:01:53.5]} 40. Re5+ {[%clk 0:01:01.5]} 40...
Kf6 {[%clk 0:01:50.5]} 41. Rd5 {[%clk 0:00:56.9]} 41... dxe3 {[%clk 0:01:44.3]}
42. fxe3 {[%clk 0:00:56.3]} 42... Kg6 {[%clk 0:01:41.7]} 43. Rd7 {[%clk
0:00:52.1]} 43... Re4 {[%clk 0:01:41.5]} 44. Kd3 {[%clk 0:00:51.5]} 44... c2
{[%clk 0:01:17.2]} 45. Kxc2 {[%clk 0:00:47.8]} 45... Rxe3 {[%clk 0:01:17.1]} 46.
Rxa7 {[%clk 0:00:48]} 46... Nb6 {[%clk 0:01:12]} 47. Bc5 {[%clk 0:00:47]} 47...
Re2+ {[%clk 0:01:08.3]} 48. Kd3 {[%clk 0:00:45.6]} 48... Re6 {[%clk 0:01:07.3]}
49. Bxb6 {[%clk 0:00:46]} 49... Rxb6 {[%clk 0:01:06.7]} 50. Ra6 {[%clk
0:00:46.4]} 50... Rxa6 {[%clk 0:01:07.6]} 51. bxa6 {[%clk 0:00:46.5]} 51... Kf5
{[%clk 0:01:07.6]} 52. a7 {[%clk 0:00:46.9]} 52... Kg4 {[%clk 0:01:08.5]} 1-0

[Event "Early-Titled-Tuesday-Blitz-March-26-2024"]
[Site "Chess.com"]
[Date "2024.03.26"]
[Round "3"]
[White "szachuspl"]
[Black "artooon"]
[Result "0-1"]
[WhiteElo "2537"]
[BlackElo "3021"]
[TimeControl "180+1"]
[EndTime "8:27:08 PDT"]
[Termination "artooon won by checkmate"]

1. d4 {[%clk 0:03:00.9]} 1... Nf6 {[%clk 0:02:59.5]} 2. c4 {[%clk 0:03:00.8]}
2... e6 {[%clk 0:03:00.1]} 3. Nf3 {[%clk 0:03:00.7]} 3... d5 {[%clk 0:03:00.5]}
4. Nc3 {[%clk 0:03:00.5]} 4... Nbd7 {[%clk 0:03:00.6]} 5. e3 {[%clk 0:02:56.7]}
5... a6 {[%clk 0:03:00.4]} 6. b3 {[%clk 0:02:56.5]} 6... Bb4 {[%clk 0:02:59.6]}
7. Bd2 {[%clk 0:02:56.4]} 7... O-O {[%clk 0:02:58.6]} 8. a3 {[%clk 0:02:56.1]}
8... Bd6 {[%clk 0:02:58.5]} 9. Be2 {[%clk 0:02:49.9]} 9... c6 {[%clk 0:02:58.5]}
10. O-O {[%clk 0:02:49.8]} 10... e5 {[%clk 0:02:58.8]} 11. dxe5 {[%clk
0:02:46.4]} 11... Nxe5 {[%clk 0:02:59.7]} 12. cxd5 {[%clk 0:02:45.8]} 12... cxd5
{[%clk 0:02:59.8]} 13. Nd4 {[%clk 0:02:40.6]} 13... Bd7 {[%clk 0:02:53.3]} 14.
b4 {[%clk 0:02:39.6]} 14... Rc8 {[%clk 0:02:52.5]} 15. Rc1 {[%clk 0:02:39.4]}
15... Nc4 {[%clk 0:02:52.3]} 16. Ra1 {[%clk 0:02:27.8]} 16... Nxd2 {[%clk
0:02:30.1]} 17. Qxd2 {[%clk 0:02:27]} 17... Bxh2+ {[%clk 0:02:17.5]} 18. Kxh2
{[%clk 0:02:25.1]} 18... Qc7+ {[%clk 0:02:18]} 19. Kg1 {[%clk 0:02:20.4]} 19...
Qxc3 {[%clk 0:02:18]} 20. Rfd1 {[%clk 0:02:20.4]} 20... Ne4 {[%clk 0:02:14.3]}
21. Qxc3 {[%clk 0:02:20.2]} 21... Nxc3 {[%clk 0:02:14.9]} 22. Rd2 {[%clk
0:02:20.7]} 22... Nxe2+ {[%clk 0:02:07.1]} 23. Nxe2 {[%clk 0:02:16.8]} 23... Be6
{[%clk 0:02:06.4]} 24. Rad1 {[%clk 0:02:12.7]} 24... g5 {[%clk 0:02:03]} 25. f3
{[%clk 0:02:09.8]} 25... Kg7 {[%clk 0:02:02.7]} 26. Kf2 {[%clk 0:02:10.1]} 26...
h5 {[%clk 0:02:02.7]} 27. Rd3 {[%clk 0:02:08]} 27... Rc2 {[%clk 0:02:00.5]} 28.
R1d2 {[%clk 0:02:08.3]} 28... Rfc8 {[%clk 0:02:00.9]} 29. Ke1 {[%clk 0:02:03.9]}
29... Kf6 {[%clk 0:01:57.9]} 30. Nd4 {[%clk 0:02:01]} 30... Rc1+ {[%clk
0:01:50.8]} 31. Rd1 {[%clk 0:01:59.5]} 31... R8c3 {[%clk 0:01:46.6]} 32. Rxc1
{[%clk 0:01:26.3]} 32... Rxd3 {[%clk 0:01:46.5]} 33. Nc2 {[%clk 0:01:26.7]}
33... Bf5 {[%clk 0:01:38.4]} 34. Nd4 {[%clk 0:01:12.9]} 34... Rxe3+ {[%clk
0:01:38.3]} 35. Kf2 {[%clk 0:01:13.4]} 35... Rxa3 {[%clk 0:01:39]} 36. Rc7
{[%clk 0:01:13.2]} 36... b5 {[%clk 0:01:36.7]} 37. Rc6+ {[%clk 0:00:55.1]} 37...
Be6 {[%clk 0:01:36.5]} 38. Rb6 {[%clk 0:00:52.7]} 38... h4 {[%clk 0:01:34.7]}
39. Nc6 {[%clk 0:00:45.2]} 39... Ra2+ {[%clk 0:01:27.1]} 40. Kg1 {[%clk
0:00:45]} 40... Kf5 {[%clk 0:01:25.8]} 41. Nd4+ {[%clk 0:00:40.9]} 41... Kf4
{[%clk 0:01:22]} 42. Nxe6+ {[%clk 0:00:28.8]} 42... Kg3 {[%clk 0:01:21.9]} 43.
Nxg5 {[%clk 0:00:22.2]} 43... Ra1# {[%clk 0:01:21.9]} 0-1

[Event "Early-Titled-Tuesday-Blitz-March-26-2024"]
[Site "Chess.com"]
[Date "2024.03.26"]
[Round "3"]
[White "xakevicius91"]
[Black "FGHSMN"]
[Result "0-1"]
[WhiteElo "2532"]
[BlackElo "2959"]
[TimeControl "180+1"]
[EndTime "8:27:09 PDT"]
[Termination "FGHSMN won by checkmate"]

1. e4 {[%clk 0:03:00.9]} 1... e5 {[%clk 0:02:59.4]} 2. Nf3 {[%clk 0:03:00.7]}
2... Nc6 {[%clk 0:02:59.5]} 3. d4 {[%clk 0:03:00.7]} 3... exd4 {[%clk
0:02:59.5]} 4. Nxd4 {[%clk 0:03:01.6]} 4... Qf6 {[%clk 0:03:00.1]} 5. Nf3 {[%clk
0:02:58.3]} 5... Bb4+ {[%clk 0:02:59.3]} 6. c3 {[%clk 0:02:58.8]} 6... Bc5
{[%clk 0:02:59.9]} 7. Be2 {[%clk 0:02:59]} 7... Nge7 {[%clk 0:02:59.2]} 8. O-O
{[%clk 0:02:57.8]} 8... h6 {[%clk 0:02:57.5]} 9. Nbd2 {[%clk 0:02:56.8]} 9... d6
{[%clk 0:02:56.2]} 10. Qc2 {[%clk 0:02:54.9]} 10... g5 {[%clk 0:02:54.3]} 11. b4
{[%clk 0:02:51.7]} 11... Bb6 {[%clk 0:02:54.5]} 12. Nc4 {[%clk 0:02:50.6]} 12...
Ng6 {[%clk 0:02:53.9]} 13. Be3 {[%clk 0:02:45.1]} 13... g4 {[%clk 0:02:47.8]}
14. Nfd2 {[%clk 0:02:32]} 14... h5 {[%clk 0:02:40.5]} 15. a4 {[%clk 0:02:26.1]}
15... h4 {[%clk 0:02:37.8]} 16. a5 {[%clk 0:02:24.7]} 16... Bxe3 {[%clk
0:02:37.8]} 17. fxe3 {[%clk 0:02:25.6]} 17... Qg5 {[%clk 0:02:36.1]} 18. Kh1
{[%clk 0:02:22.4]} 18... g3 {[%clk 0:02:34.4]} 19. Nf3 {[%clk 0:02:15.5]} 19...
Qe7 {[%clk 0:02:33.9]} 20. h3 {[%clk 0:02:14.6]} 20... Be6 {[%clk 0:02:34.1]}
21. b5 {[%clk 0:02:13]} 21... Nce5 {[%clk 0:02:32.2]} 22. Nfxe5 {[%clk
0:01:53.3]} 22... dxe5 {[%clk 0:02:29.5]} 23. b6 {[%clk 0:01:48.1]} 23... c6
{[%clk 0:02:18.7]} 24. a6 {[%clk 0:01:35.7]} 24... O-O {[%clk 0:02:09.5]} 25.
axb7 {[%clk 0:01:24]} 25... Qxb7 {[%clk 0:02:10.4]} 26. bxa7 {[%clk 0:01:22.4]}
26... Rxa7 {[%clk 0:02:09.2]} 27. Nd6 {[%clk 0:01:12.6]} 27... Qd7 {[%clk
0:02:02.1]} 28. Rxa7 {[%clk 0:01:11.4]} 28... Qxa7 {[%clk 0:02:03]} 29. Nf5
{[%clk 0:01:11.7]} 29... Rd8 {[%clk 0:01:57]} 30. Bh5 {[%clk 0:00:55.1]} 30...
Bc4 {[%clk 0:01:41.4]} 31. Re1 {[%clk 0:00:48.1]} 31... Bd3 {[%clk 0:01:22.9]}
32. Qb3 {[%clk 0:00:46.9]} 32... Kh7 {[%clk 0:01:15.8]} 33. Bxg6+ {[%clk
0:00:39.7]} 33... fxg6 {[%clk 0:01:16.7]} 34. Nxh4 {[%clk 0:00:40.3]} 34... Bxe4
{[%clk 0:01:16.4]} 35. Rf1 {[%clk 0:00:17]} 35... Rf8 {[%clk 0:01:14.6]} 36.
Rxf8 {[%clk 0:00:13.9]} 36... Qa1+ {[%clk 0:01:13.5]} 37. Rf1 {[%clk 0:00:14]}
37... Qxf1# {[%clk 0:01:13.7]} 0-1

[Event "Early-Titled-Tuesday-Blitz-March-26-2024"]
[Site "Chess.com"]
[Date "2024.03.26"]
[Round "3"]
[White "ActorXu"]
[Black "Likvidator228"]
[Result "1-0"]
[WhiteElo "2856"]
[BlackElo "2577"]
[TimeControl "180+1"]
[EndTime "8:27:10 PDT"]
[Termination "ActorXu won by resignation"]

1. e4 {[%clk 0:03:00.9]} 1... c5 {[%clk 0:02:51]} 2. Nf3 {[%clk 0:03:00.9]} 2...
g6 {[%clk 0:02:50]} 3. c3 {[%clk 0:03:00.6]} 3... Bg7 {[%clk 0:02:48.1]} 4. d4
{[%clk 0:03:00.1]} 4... cxd4 {[%clk 0:02:48.6]} 5. cxd4 {[%clk 0:03:01]} 5... d5
{[%clk 0:02:48.9]} 6. e5 {[%clk 0:03:01.2]} 6... a6 {[%clk 0:02:49.2]} 7. h3
{[%clk 0:02:56.7]} 7... Nc6 {[%clk 0:02:49.4]} 8. Nc3 {[%clk 0:02:55.7]} 8... f6
{[%clk 0:02:50]} 9. Bf4 {[%clk 0:02:48.3]} 9... fxe5 {[%clk 0:02:50.1]} 10. Nxe5
{[%clk 0:02:45.6]} 10... Nxe5 {[%clk 0:02:30.9]} 11. Bxe5 {[%clk 0:02:40.9]}
11... Bxe5 {[%clk 0:02:30.5]} 12. dxe5 {[%clk 0:02:41]} 12... e6 {[%clk
0:02:30.9]} 13. Bd3 {[%clk 0:02:38.6]} 13... Ne7 {[%clk 0:02:30.9]} 14. O-O
{[%clk 0:02:37.6]} 14... O-O {[%clk 0:02:30.8]} 15. Qg4 {[%clk 0:02:28.8]} 15...
Nc6 {[%clk 0:02:17.6]} 16. Rae1 {[%clk 0:02:15.8]} 16... Qe7 {[%clk 0:02:13.6]}
17. f4 {[%clk 0:02:11.2]} 17... Qg7 {[%clk 0:02:11.8]} 18. Kh2 {[%clk
0:02:08.3]} 18... b5 {[%clk 0:02:10.1]} 19. h4 {[%clk 0:02:01.1]} 19... b4
{[%clk 0:02:08.8]} 20. Ne2 {[%clk 0:01:53.6]} 20... a5 {[%clk 0:02:09]} 21. Rc1
{[%clk 0:01:46.9]} 21... Nd8 {[%clk 0:01:09.3]} 22. Nd4 {[%clk 0:01:41.9]} 22...
Qf7 {[%clk 0:00:54.4]} 23. h5 {[%clk 0:01:39.3]} 23... Kg7 {[%clk 0:00:54.8]}
24. Rc5 {[%clk 0:01:31.4]} 24... Nb7 {[%clk 0:00:47]} 25. Rxc8 {[%clk 0:01:13]}
25... Raxc8 {[%clk 0:00:44.3]} 26. Nxe6+ {[%clk 0:01:13]} 26... Kg8 {[%clk
0:00:40.5]} 27. hxg6 {[%clk 0:01:11.7]} 27... hxg6 {[%clk 0:00:38.2]} 28. Bxg6
{[%clk 0:01:09.9]} 28... Qe7 {[%clk 0:00:30.4]} 29. Rf3 {[%clk 0:00:50.7]} 29...
Nc5 {[%clk 0:00:21.8]} 30. Bf5+ {[%clk 0:00:49.3]} 30... Kh8 {[%clk 0:00:21.8]}
31. Rh3+ {[%clk 0:00:49.2]} 1-0